bitfinex-derivatives/quotes_BTCF0:USTF0_20241003
["timestamp","ask_amount","ask_price","bid_price","bid_amount"]
[1727998354535,0.082251,60792.0,60791.0,0.19346743]
[1727998354748,0.082251,60792.0,60791.0,0.00346743]
[1727998358144,0.082251,60792.0,60791.0,0.19346743]
[1727998359544,0.082251,60792.0,60791.0,0.00346743]
[1727998360849,0.082251,60792.0,60791.0,4.3e-07]
[1727998361054,1.175731,60792.0,60791.0,4.3e-07]
[1727998361745,1.536531,60792.0,60791.0,4.3e-07]
[1727998362856,0.082278,60772.0,60771.0,0.19]
[1727998363945,0.0309,60777.0,60771.0,0.19]
[1727998364141,0.0309,60777.0,60765.0,0.3608]
[1727998364142,0.082275,60775.0,60774.0,0.19]
[1727998364352,0.082268,60780.0,60774.0,0.19]
[1727998364556,0.082268,60780.0,60779.0,0.19]
[1727998367149,0.082268,60780.0,60779.0,0.191]
[1727998368055,0.082264,60783.0,60779.0,0.191]
[1727998368256,0.00246837,60785.0,60782.0,0.19]
[1727998368467,0.00246837,60785.0,60783.0,0.082263]
[1727998368754,0.00246837,60785.0,60782.0,0.19]
[1727998368755,0.00246837,60785.0,60784.0,0.443062]
[1727998368961,0.0038,60794.0,60784.0,0.3608]
[1727998369153,0.3608,60797.0,60787.0,0.082258]
[1727998369154,0.082252,60792.0,60787.0,0.082258]
[1727998369552,0.082252,60792.0,60788.0,1.32]
[1727998370159,0.082252,60792.0,60791.0,0.19]
[1727998371659,0.082252,60792.0,60791.0,0.192]
[1727998371954,0.082252,60792.0,60791.0,0.19]
[1727998372154,0.082252,60792.0,60791.0,0.191]
[1727998373563,0.082252,60792.0,60791.0,0.19]
[1727998373864,0.082252,60792.0,60791.0,0.5518]
[1727998375153,0.082252,60792.0,60791.0,0.19]
[1727998375952,0.0305,60798.0,60791.0,0.272252]
[1727998376265,0.001,60792.0,60791.0,0.272252]
[1727998377154,0.08225,60793.0,60791.0,0.273252]
[1727998377354,0.08225,60793.0,60791.0,0.274252]
[1727998377755,0.08225,60793.0,60791.0,0.273252]
[1727998377962,0.001,60792.0,60791.0,0.273252]
[1727998378460,0.001,60792.0,60791.0,0.272252]
[1727998379458,0.08325,60793.0,60791.0,0.082252]
[1727998380055,0.082255,60789.0,60788.0,0.00092]
[1727998380364,0.082257,60788.0,60787.0,0.082257]
[1727998380555,0.082261,60785.0,60784.0,0.3608]
[1727998380863,0.082261,60785.0,60784.0,0.633062]
[1727998381564,0.082255,60790.0,60785.0,0.082261]
[1727998381764,0.082255,60790.0,60789.0,0.19]
[1727998381956,0.082255,60790.0,60789.0,0.272255]
[1727998384265,0.082255,60790.0,60789.0,0.273255]
[1727998384460,0.082255,60790.0,60789.0,0.275255]
[1727998384757,0.082255,60790.0,60789.0,0.273255]
[1727998385759,0.08225,60793.0,60792.0,0.082247]
[1727998385956,0.082243,60800.0,60799.0,0.08224]
[1727998386159,0.082243,60800.0,60799.0,0.27224]
[1727998387156,0.082243,60800.0,60799.0,0.08224]
[1727998387560,0.092243,60800.0,60799.0,0.08324]
[1727998388068,0.01,60800.0,60799.0,0.08324]
[1727998388264,0.01,60800.0,60799.0,0.27324]
[1727998388566,0.09224,60800.0,60799.0,0.27324]
[1727998389565,0.10224,60800.0,60799.0,0.002]
[1727998390365,0.59568,60800.0,60799.0,0.002]
[1727998390572,0.08225,60793.0,60792.0,0.3646]
[1727998390771,0.08225,60793.0,60792.0,0.443051]
[1727998391658,0.08425,60793.0,60792.0,0.443051]
[1727998392557,0.08725,60793.0,60792.0,0.443051]
[1727998393067,0.082258,60787.0,60786.0,0.08472657]
[1727998394167,0.082258,60787.0,60786.0,0.09172657]
[1727998394666,0.082258,60787.0,60786.0,0.28172657]
[1727998395571,0.082258,60787.0,60786.0,0.27872657]
[1727998396268,0.082258,60787.0,60786.0,0.27572657]
[1727998396773,0.082258,60787.0,60786.0,0.63652657]
[1727998396974,0.0325,60789.0,60788.0,0.082257]
[1727998397170,0.164512,60790.0,60789.0,0.082255]
[1727998398171,0.082255,60790.0,60789.0,0.082255]
[1727998398874,0.003,60790.0,60789.0,0.082255]
[1727998399275,0.005,60790.0,60789.0,0.082255]
[1727998400170,0.003,60790.0,60789.0,0.082255]
[1727998400373,0.443045,60797.0,60796.0,0.082246]
[1727998400674,0.443045,60797.0,60796.0,0.272246]
[1727998401870,0.00626787,60805.0,60796.0,0.19]
[1727998402069,0.00626787,60805.0,60792.0,0.3608]
[1727998402070,0.08850187,60805.0,60804.0,0.082235]
[1727998402271,0.08470187,60805.0,60804.0,0.082235]
[1727998402881,0.00246787,60805.0,60804.0,0.082235]
[1727998403083,0.08470187,60805.0,60804.0,0.082235]
[1727998403283,0.09670187,60805.0,60804.0,0.083235]
[1727998405074,0.09670187,60805.0,60804.0,0.444035]
[1727998405381,0.10770187,60805.0,60804.0,0.445035]
[1727998405585,0.02546787,60805.0,60804.0,0.445035]
[1727998406280,0.10770187,60805.0,60804.0,0.445035]
[1727998408970,0.10770187,60805.0,60804.0,0.084235]
[1727998409177,0.10770187,60805.0,60804.0,0.445035]
[1727998409973,0.10770187,60805.0,60804.0,0.084235]
[1727998410284,0.10770187,60805.0,60804.0,0.445035]
[1727998411881,0.10770187,60805.0,60804.0,0.084235]
[1727998414583,0.10770187,60805.0,60804.0,0.445035]
[1727998426800,0.10770187,60805.0,60804.0,0.084235]
[1727998427285,0.10770187,60805.0,60804.0,0.445035]
[1727998427491,0.10770187,60805.0,60804.0,0.084235]
[1727998427690,0.10770187,60805.0,60804.0,0.445035]
[1727998429602,0.10770187,60805.0,60804.0,0.51063158]
[1727998429806,0.10770187,60805.0,60804.0,0.14983158]
[1727998430009,0.10770187,60805.0,60804.0,0.51063158]
[1727998430510,0.10770187,60805.0,60804.0,0.445035]
[1727998431612,0.02546787,60805.0,60804.0,0.445035]
[1727998432215,0.10770187,60805.0,60804.0,0.445035]
[1727998434606,0.10770187,60805.0,60804.0,0.084235]
[1727998435111,0.10770187,60805.0,60804.0,0.445035]
[1727998435808,0.10770187,60805.0,60804.0,0.084235]
[1727998436007,0.10770187,60805.0,60804.0,0.445035]
[1727998436213,0.02546787,60805.0,60804.0,0.445035]
[1727998437527,0.10770187,60805.0,60804.0,0.445035]
[1727998439107,0.10770187,60805.0,60804.0,0.3628]
[1727998440613,0.10770187,60805.0,60804.0,0.42861468]
[1727998440811,0.10770187,60805.0,60804.0,0.3628]
[1727998442210,0.10770187,60805.0,60804.0,0.445035]
[1727998448519,0.10770187,60805.0,60804.0,0.084235]
[1727998448725,0.10770187,60805.0,60804.0,0.445035]
[1727998450123,0.10770187,60805.0,60804.0,0.084235]
[1727998455633,0.10770187,60805.0,60804.0,0.15004841]
[1727998460129,0.10770187,60805.0,60804.0,0.084235]
[1727998460933,0.10770187,60805.0,60804.0,0.15004728]
[1727998461640,0.10770187,60805.0,60804.0,0.084235]
[1727998476147,0.10770187,60805.0,60804.0,0.445035]
[1727998476949,0.10770187,60805.0,60804.0,0.084235]
[1727998477138,0.10770187,60805.0,60804.0,0.445035]
[1727998479042,0.10770187,60805.0,60804.0,0.084235]
[1727998479246,0.10770187,60805.0,60804.0,0.445035]
[1727998481050,0.10770187,60805.0,60804.0,0.084235]
[1727998481346,0.02546787,60805.0,60804.0,0.445035]
[1727998481548,0.0038,60813.0,60804.0,1.16306288]
[1727998481750,0.082224,60814.0,60813.0,0.08222]
[1727998481952,0.202224,60814.0,60813.0,0.08222]
[1727998482254,0.202224,60814.0,60813.0,0.14802233]
[1727998482454,0.202224,60814.0,60813.0,0.08222]
[1727998483046,0.214224,60814.0,60813.0,0.08322]
[1727998483249,0.214224,60814.0,60813.0,0.001]
[1727998485052,0.23318166,60814.0,60813.0,0.002]
[1727998488262,0.23318166,60814.0,60808.0,0.0038]
[1727998488263,0.082228,60809.0,60808.0,0.0038]
[1727998488449,0.082235,60804.0,60803.0,0.41011603]
[1727998488651,0.202235,60804.0,60803.0,0.3608]
[1727998489753,0.082239,60801.0,60799.0,0.13155803]
[1727998489962,0.08224,60800.0,60799.0,0.082242]
[1727998491553,0.08224,60800.0,60796.0,0.37986234]
[1727998491554,0.082245,60797.0,60796.0,0.41011603]
[1727998491857,0.082245,60797.0,60796.0,0.49236203]
[1727998492661,0.082245,60797.0,60796.0,0.443046]
[1727998493945,0.083245,60797.0,60796.0,0.443046]
[1727998494451,0.084245,60797.0,60796.0,0.443046]
[1727998496963,0.002,60797.0,60796.0,1.536486]
[1727998497353,0.002,60797.0,60796.0,1.72348376]
[1727998497554,0.002,60797.0,60796.0,2.9612317]
[1727998500254,0.001,60797.0,60796.0,2.9632317]
[1727998500864,0.082236,60804.0,60803.0,0.082236]
[1727998501054,0.082236,60804.0,60803.0,0.202236]
[1727998502455,0.082236,60804.0,60803.0,0.443036]
[1727998502765,0.083236,60804.0,60803.0,0.443036]
[1727998503456,0.083236,60804.0,60803.0,0.082236]
[1727998503651,0.203236,60804.0,60803.0,0.04926069]
[1727998503858,0.082236,60803.0,60801.0,0.04926148]
[1727998504053,0.082245,60797.0,60795.0,0.04926148]
[1727998504253,0.082245,60797.0,60791.0,0.04926148]
[1727998504254,0.082251,60792.0,60791.0,0.04926148]
[1727998504454,0.082251,60792.0,60786.0,0.082259]
[1727998504455,0.12,60790.0,60788.0,0.13151748]
[1727998504660,0.202254,60790.0,60789.0,0.04926148]
[1727998504856,0.202254,60790.0,60788.0,0.082256]
[1727998504857,0.082255,60789.0,60788.0,0.082256]
[1727998505262,0.082258,60787.0,60786.0,0.06567906]
[1727998505456,0.202258,60787.0,60786.0,0.06567906]
[1727998505664,0.082259,60786.0,60784.0,0.06567906]
[1727998505874,0.082255,60789.0,60761.0,0.13133222]
[1727998505875,0.082262,60784.0,60781.0,0.06567906]
[1727998506171,0.082266,60781.0,60780.0,0.3608]
[1727998506468,0.272266,60781.0,60780.0,0.3608]
[1727998508061,0.272266,60781.0,60780.0,0.3838]
[1727998509365,0.082266,60781.0,60780.0,0.466068]
[1727998509567,0.13127248,60812.0,60780.0,0.466068]
[1727998509568,0.082259,60787.0,60786.0,0.082259]
[1727998509760,0.082254,60790.0,60789.0,0.082254]
[1727998510259,0.0307,60793.0,60792.0,0.082251]
[1727998510461,0.08225,60793.0,60792.0,0.082251]
[1727998511666,0.08425,60793.0,60792.0,0.082251]
[1727998514272,0.002,60793.0,60792.0,0.082251]
[1727998514569,0.002,60793.0,60792.0,0.49227165]
[1727998515369,0.002,60793.0,60792.0,0.49220996]
[1727998515571,0.002,60793.0,60792.0,0.443051]
[1727998516565,0.001,60793.0,60792.0,0.443051]
[1727998516765,0.001,60793.0,60792.0,0.444051]
[1727998516964,0.00246818,60794.0,60793.0,0.08225]
[1727998517165,0.00246818,60794.0,60793.0,0.27225]
[1727998517965,0.00246818,60794.0,60793.0,0.99385]
[1727998518368,0.00246818,60794.0,60793.0,0.99785]
[1727998519476,0.00246818,60794.0,60793.0,1.00185]
[1727998522080,0.00246818,60794.0,60793.0,1.00085]
[1727998522292,0.00246818,60794.0,60793.0,1.02040445]
[1727998522481,0.00246818,60794.0,60793.0,1.01940445]
[1727998526372,0.00246818,60794.0,60793.0,0.82940445]
[1727998526974,0.00246818,60794.0,60793.0,0.87858992]
[1727998527276,0.00246818,60794.0,60793.0,0.82940445]
[1727998527484,0.00246818,60794.0,60793.0,0.82640445]
[1727998527687,0.00246818,60794.0,60793.0,0.82940445]
[1727998528575,0.08471718,60794.0,60793.0,0.8785981]
[1727998528776,0.08471718,60794.0,60793.0,0.3668]
[1727998529582,0.08471718,60794.0,60793.0,0.3658]
[1727998529982,0.08471718,60794.0,60793.0,0.44805]
[1727998530284,0.08471718,60794.0,60793.0,0.44305]
[1727998531091,0.08471718,60794.0,60793.0,0.63305]
[1727998531477,0.08471718,60794.0,60793.0,0.44305]
[1727998532693,0.08471718,60794.0,60793.0,0.44505]
[1727998532885,0.08471718,60794.0,60793.0,0.44605]
[1727998533388,0.08471718,60794.0,60793.0,0.44505]
[1727998533693,0.08471718,60794.0,60793.0,0.44305]
[1727998535197,0.00246818,60794.0,60793.0,0.44305]
[1727998536383,0.00246818,60794.0,60793.0,0.44705]
[1727998537486,0.00246818,60794.0,60793.0,0.49624365]
[1727998537487,0.08471718,60794.0,60793.0,0.49624365]
[1727998537890,0.08471718,60794.0,60793.0,0.44705]
[1727998538283,0.08471718,60794.0,60793.0,0.51672906]
[1727998538981,0.08471718,60794.0,60793.0,0.15592906]
[1727998539185,0.08471718,60794.0,60793.0,0.51272906]
[1727998539387,0.08471718,60794.0,60793.0,0.44305]
[1727998539586,0.08471718,60794.0,60793.0,0.44405]
[1727998539989,0.08471718,60794.0,60793.0,0.08225]
[1727998540292,0.08471718,60794.0,60793.0,0.44305]
[1727998542099,0.08471718,60794.0,60793.0,0.08225]
[1727998542300,0.08471718,60794.0,60793.0,0.44305]
[1727998543285,0.08471718,60794.0,60793.0,0.52514882]
[1727998543486,0.08471718,60794.0,60793.0,0.44305]
[1727998543898,0.08471718,60794.0,60793.0,0.52514882]
[1727998544397,0.08471718,60794.0,60793.0,0.63044221]
[1727998544793,0.08471718,60794.0,60793.0,0.26964221]
[1727998545094,0.08471718,60794.0,60793.0,1.95044221]
[1727998545994,0.08471718,60794.0,60793.0,1.76305]
[1727998548097,0.08471718,60794.0,60793.0,1.40225]
[1727998548288,0.08471718,60794.0,60793.0,1.76305]
[1727998548590,0.082249,60794.0,60793.0,1.76305]
[1727998549583,0.082249,60794.0,60793.0,1.76405]
[1727998550192,0.082249,60794.0,60793.0,1.76505]
[1727998550696,0.082249,60794.0,60793.0,1.40425]
[1727998550994,0.082249,60794.0,60793.0,1.76505]
[1727998551583,0.082249,60794.0,60793.0,1.76405]
[1727998551788,0.082249,60794.0,60793.0,1.76305]
[1727998552984,0.082249,60794.0,60793.0,1.5076964]
[1727998553189,0.082249,60794.0,60793.0,1.8684964]
[1727998553986,0.082249,60794.0,60793.0,1.5076964]
[1727998554191,0.082249,60794.0,60793.0,1.86849758]
[1727998555302,0.082249,60794.0,60793.0,1.95075028]
[1727998555696,0.082249,60794.0,60793.0,1.86849758]
[1727998558808,0.082249,60794.0,60793.0,1.50769758]
[1727998559800,0.082249,60794.0,60793.0,1.86849758]
[1727998560001,0.082249,60794.0,60793.0,0.52532471]
[1727998560701,0.082249,60794.0,60793.0,0.44305]
[1727998569813,0.082249,60794.0,60793.0,0.63099324]
[1727998571111,0.082249,60794.0,60793.0,0.63098832]
[1727998571307,0.082249,60794.0,60793.0,0.54871853]
[1727998573914,0.116042,60801.0,60800.0,0.08224]
[1727998574111,0.194485,60801.0,60800.0,0.08224]
[1727998575117,0.195485,60801.0,60800.0,0.08324]
[1727998575310,0.031,60801.0,60800.0,0.08324]
[1727998575511,0.002,60801.0,60800.0,0.44504]
[1727998575810,0.002,60801.0,60800.0,0.55042051]
[1727998576515,0.002,60801.0,60800.0,0.57015391]
[1727998576705,0.204239,60801.0,60800.0,0.6513281]
[1727998576912,0.203239,60801.0,60800.0,0.4627734]
[1727998577113,0.204239,60801.0,60800.0,0.4627734]
[1727998577411,0.204239,60801.0,60800.0,0.52850666]
[1727998577617,0.084239,60801.0,60800.0,0.52850666]
[1727998578206,0.083239,60801.0,60800.0,0.52850666]
[1727998578412,0.083239,60801.0,60800.0,0.50877326]
[1727998578713,0.084239,60801.0,60800.0,0.50877326]
[1727998579105,0.002,60801.0,60800.0,0.50877326]
[1727998579812,0.002,60801.0,60800.0,0.44304]
[1727998580015,0.01951122,60813.0,60806.0,0.082232]
[1727998580203,0.01951122,60813.0,60812.0,0.082224]
[1727998580410,0.082224,60814.0,60813.0,0.082221]
[1727998581616,0.082227,60810.0,60809.0,0.13148526]
[1727998581915,0.082228,60809.0,60808.0,0.04925826]
[1727998582311,0.082227,60810.0,60807.0,0.13148826]
[1727998582506,0.08223,60808.0,60807.0,0.13148826]
[1727998583213,0.08223,60808.0,60807.0,0.08223]
[1727998584311,0.08223,60808.0,60807.0,0.001]
[1727998584504,1.17559,60808.0,60807.0,0.001]
[1727998585311,1.17559,60808.0,60807.0,0.002]
[1727998585721,0.08223,60808.0,60807.0,0.002]
[1727998587122,0.57559,60808.0,60807.0,0.002]
[1727998587412,1.17559,60808.0,60802.0,0.0492126]
[1727998587721,1.17559,60808.0,60797.0,0.06571068]
[1727998587722,0.082243,60798.0,60797.0,0.0530126]
[1727998587915,0.272243,60798.0,60797.0,0.0492126]
[1727998588819,0.082246,60796.0,60795.0,0.4100126]
[1727998589019,0.082246,60796.0,60791.0,0.0492126]
[1727998589218,0.082246,60796.0,60790.0,0.0038]
[1727998589219,0.19,60793.0,60790.0,0.0492126]
[1727998589514,0.082257,60788.0,60787.0,0.0038]
[1727998589716,0.19,60788.0,60785.0,0.04923072]
[1727998589906,0.082261,60785.0,60784.0,0.082262]
[1727998590407,0.082261,60785.0,60784.0,0.13148304]
[1727998590718,0.070261,60785.0,60784.0,0.13148304]
[1727998591114,0.070261,60785.0,60784.0,0.14548304]
[1727998592322,0.071261,60785.0,60784.0,0.110262]
[1727998592914,0.071261,60785.0,60784.0,0.028]
[1727998594019,0.564821,60785.0,60784.0,0.028]
[1727998595219,0.563821,60785.0,60784.0,0.014]
[1727998595414,0.071261,60785.0,60784.0,0.023]
[1727998595618,0.564821,60785.0,60784.0,0.023]
[1727998595928,0.071261,60785.0,60784.0,0.105262]
[1727998596226,0.071261,60785.0,60784.0,0.100262]
[1727998599124,0.071261,60785.0,60784.0,0.461062]
[1727998600515,0.261261,60785.0,60784.0,0.100262]
[1727998600822,0.261261,60785.0,60784.0,0.018]
[1727998601923,0.265261,60785.0,60784.0,0.009]
[1727998602523,1.358821,60785.0,60784.0,0.009]
[1727998602718,0.082266,60781.0,60780.0,0.0038]
[1727998603031,0.272266,60781.0,60778.0,0.00246791]
[1727998603214,0.082269,60779.0,60778.0,0.00246791]
[1727998603818,0.0646,60780.0,60772.0,0.0038]
[1727998604024,0.082282,60769.0,60768.0,0.3646]
[1727998604228,0.272282,60769.0,60768.0,0.3608]
[1727998605525,0.273282,60769.0,60768.0,0.3728]
[1727998605824,0.273282,60769.0,60768.0,0.012]
[1727998606329,0.273282,60769.0,60768.0,0.024]
[1727998606330,0.274282,60769.0,60768.0,0.024]
[1727998610118,1.728762,60769.0,60761.0,0.0038]
[1727998610318,0.082296,60759.0,60758.0,0.0038]
[1727998610527,0.082296,60759.0,60754.0,0.0671]
[1727998610528,0.082301,60755.0,60754.0,0.0633]
[1727998610715,0.272301,60755.0,60754.0,0.0633]
[1727998611930,0.273301,60755.0,60754.0,0.0773]
[1727998612424,0.274301,60755.0,60754.0,0.0833]
[1727998612928,0.084301,60755.0,60754.0,0.165603]
[1727998613340,0.002,60755.0,60754.0,0.165603]
[1727998613627,0.002,60755.0,60754.0,1.259403]
[1727998614117,0.002,60755.0,60754.0,0.165603]
[1727998616736,0.002,60755.0,60754.0,0.526403]
[1727998617234,0.002,60755.0,60754.0,0.57562404]
[1727998618431,0.002,60755.0,60754.0,0.526403]
[1727998621138,0.002,60755.0,60754.0,0.57554222]
[1727998621320,0.002,60755.0,60754.0,0.526403]
[1727998621523,0.002,60755.0,60754.0,0.5755475]
[1727998622344,0.002,60755.0,60754.0,0.526403]
[1727998623040,0.084301,60755.0,60754.0,0.463103]
[1727998623235,0.274301,60755.0,60754.0,0.463103]
[1727998626540,0.274301,60755.0,60754.0,0.102303]
[1727998627254,0.274301,60755.0,60754.0,0.15145382]
[1727998627645,0.274301,60755.0,60754.0,0.102303]
[1727998628346,0.274301,60755.0,60754.0,0.15145382]
[1727998628554,0.274301,60755.0,60754.0,0.102303]
[1727998631455,0.274301,60755.0,60754.0,0.16800086]
[1727998631646,0.274301,60755.0,60754.0,0.102303]
[1727998632652,0.084301,60755.0,60754.0,0.102303]
[1727998632950,0.084301,60755.0,60754.0,0.18447719]
[1727998633156,0.084301,60755.0,60754.0,0.102303]
[1727998633456,0.084301,60755.0,60754.0,0.29095887]
[1727998634353,0.084301,60755.0,60754.0,0.20878468]
[1727998635358,0.002,60755.0,60754.0,0.20878468]
[1727998635655,0.274301,60755.0,60754.0,0.20878468]
[1727998636055,0.002,60755.0,60754.0,0.20878468]
[1727998636446,0.002,60755.0,60754.0,0.30747395]
[1727998636647,0.002,60755.0,60754.0,0.30734119]
[1727998636956,0.274301,60755.0,60754.0,0.20868101]
[1727998643461,0.084301,60755.0,60754.0,0.20868101]
[1727998644652,0.002,60755.0,60754.0,0.20868101]
[1727998644857,0.002,60755.0,60754.0,0.30734119]
[1727998645060,0.002,60755.0,60754.0,0.80114119]
[1727998645359,0.0038,60763.0,60762.0,0.082292]
[1727998645562,0.082282,60770.0,60769.0,0.082282]
[1727998645957,0.082282,60770.0,60769.0,1.402282]
[1727998646256,0.082282,60770.0,60769.0,0.082282]
[1727998647266,0.082282,60770.0,60769.0,0.1480462]
[1727998648062,0.082282,60770.0,60769.0,0.082282]
[1727998648458,0.085282,60770.0,60769.0,0.082282]
[1727998651059,0.085282,60770.0,60769.0,0.14800715]
[1727998651366,0.085282,60770.0,60769.0,0.13156513]
[1727998653160,0.085282,60770.0,60769.0,0.082282]
[1727998654857,0.085282,60770.0,60769.0,0.1016945]
[1727998662969,0.003,60770.0,60769.0,0.1016945]
[1727998663374,0.085281,60770.0,60769.0,0.1016945]
[1727998663872,0.083281,60770.0,60769.0,0.1036945]
[1727998664569,0.085281,60770.0,60769.0,0.1016945]
[1727998665271,0.084281,60770.0,60769.0,0.1016945]
[1727998665668,0.122,60770.0,60769.0,0.1016945]
[1727998665879,0.122,60770.0,60769.0,0.16741965]
[1727998666060,0.123,60770.0,60769.0,1.48741965]
[1727998666866,0.123,60770.0,60769.0,1.49041965]
[1727998666867,0.121,60770.0,60769.0,1.49041965]
[1727998667666,0.123,60770.0,60769.0,1.48741965]
[1727998668766,0.122,60770.0,60769.0,1.48841965]
[1727998669070,0.122,60770.0,60769.0,1.4226945]
[1727998669774,0.12,60770.0,60769.0,1.4226945]
[1727998669969,0.12,60770.0,60769.0,1.4246945]
[1727998670164,0.00246917,60772.0,60771.0,0.08228]
[1727998670473,0.0038,60778.0,60777.0,0.082272]
[1727998670776,0.12528,60786.0,60782.0,0.082265]
[1727998670966,0.0319,60789.0,60785.0,0.14794397]
[1727998671161,0.0024683,60791.0,60788.0,0.4808]
[1727998671366,0.0024683,60791.0,60790.0,0.082254]
[1727998671571,0.1224683,60791.0,60790.0,0.082254]
[1727998672174,0.1224683,60791.0,60790.0,0.13147523]
[1727998672969,0.1364683,60791.0,60790.0,0.13147523]
[1727998673372,0.1484683,60791.0,60790.0,0.082254]
[1727998673566,0.0284683,60791.0,60790.0,0.082254]
[1727998674076,0.0304683,60791.0,60790.0,0.083254]
[1727998676169,0.0304683,60791.0,60790.0,0.10264278]
[1727998679275,0.1127213,60791.0,60790.0,0.10264278]
[1727998680587,0.1127213,60791.0,60790.0,0.29264278]
[1727998680588,0.0304683,60791.0,60790.0,0.29264278]
[1727998681392,0.028,60791.0,60790.0,0.29264278]
[1727998681684,0.0038,60799.0,60798.0,0.082243]
[1727998681882,0.146232,60807.0,60806.0,0.082232]
[1727998682384,0.113427,60810.0,60809.0,0.082228]
[1727998683684,0.126427,60810.0,60809.0,0.083228]
[1727998684777,0.126427,60810.0,60809.0,0.084228]
[1727998684778,0.136427,60810.0,60809.0,0.084228]
[1727998685189,0.326427,60810.0,60809.0,0.002]
[1727998687083,0.326427,60810.0,60809.0,0.084228]
[1727998696793,0.326427,60810.0,60809.0,0.002]
[1727998697700,0.136427,60810.0,60809.0,0.084228]
[1727998699290,0.326427,60810.0,60809.0,0.084228]
[1727998699888,0.326427,60810.0,60809.0,0.002]
[1727998700494,0.326427,60810.0,60809.0,0.084228]
[1727998701402,0.136427,60810.0,60809.0,0.084228]
[1727998706500,0.326427,60810.0,60809.0,0.084228]
[1727998708208,0.326427,60810.0,60809.0,0.13342343]
[1727998709205,0.326427,60810.0,60809.0,0.084228]
[1727998710406,0.326427,60810.0,60809.0,0.13352795]
[1727998711397,0.326427,60810.0,60809.0,0.084228]
[1727998712799,0.105227,60810.0,60809.0,0.084228]
[1727998713010,0.105227,60810.0,60809.0,0.14982191]
[1727998717405,0.105227,60810.0,60809.0,0.084228]
[1727998717605,0.105227,60810.0,60809.0,0.14982191]
[1727998718206,0.105227,60810.0,60809.0,0.084228]
[1727998719205,0.023,60810.0,60809.0,0.204228]
[1727998719405,0.0038,60819.0,60814.0,0.082221]
[1727998719609,0.00626664,60826.0,60818.0,0.12]
[1727998719805,0.08467164,60826.0,60825.0,0.25152896]
[1727998720015,0.08467164,60826.0,60825.0,0.202207]
[1727998720513,0.08467164,60826.0,60825.0,0.25148668]
[1727998720714,0.09467164,60826.0,60825.0,0.25148668]
[1727998721406,0.09467164,60826.0,60825.0,0.203207]
[1727998722019,0.09467164,60826.0,60825.0,0.10380365]
[1727998723318,0.09467164,60826.0,60825.0,0.084207]
[1727998723816,0.09467164,60826.0,60825.0,0.445007]
[1727998723817,0.01246664,60826.0,60825.0,0.445007]
[1727998724317,0.01246664,60826.0,60825.0,0.51076961]
[1727998724513,0.01246664,60826.0,60825.0,0.445007]
[1727998724715,0.01246664,60826.0,60825.0,0.4642278]
[1727998725114,0.01246664,60826.0,60825.0,0.51242544]
[1727998725416,0.00246664,60826.0,60825.0,0.4622278]
[1727998725626,0.114898,60832.0,60831.0,0.082199]
[1727998725818,0.082198,60832.0,60831.0,0.082199]
[1727998726822,0.0311,60834.0,60832.0,0.082197]
[1727998727017,0.08219,60837.0,60836.0,0.082187]
[1727998727719,0.32134893,60841.0,60836.0,0.272187]
[1727998727720,0.0302,60841.0,60836.0,0.272187]
[1727998727919,0.112385,60841.0,60840.0,0.272186]
[1727998728118,0.112385,60841.0,60840.0,0.082186]
[1727998730530,0.112385,60841.0,60840.0,0.084186]
[1727998730925,0.082185,60841.0,60840.0,0.084186]
[1727998733930,0.082185,60841.0,60840.0,0.002]
[1727998746129,1.175265,60841.0,60840.0,0.002]
[1727998746329,0.082197,60832.0,60831.0,0.0038]
[1727998746530,0.082197,60832.0,60826.0,0.0191899]
[1727998746531,0.082204,60827.0,60826.0,0.0191899]
[1727998746738,0.082204,60827.0,60819.0,0.04917958]
[1727998746739,0.082211,60822.0,60819.0,0.0038]
[1727998746934,0.082211,60822.0,60818.0,0.19]
[1727998747127,0.082211,60822.0,60814.0,0.1938]
[1727998747342,0.082211,60822.0,60815.0,1.32]
[1727998748029,0.082211,60822.0,60814.0,0.0038]
[1727998748537,0.082211,60822.0,60818.0,0.01975181]
[1727998748927,0.082213,60820.0,60819.0,0.3608]
[1727998749528,0.19,60839.0,60821.0,0.004]
[1727998749829,0.145299,60831.0,60830.0,0.19]
[1727998750431,0.0822,60830.0,60827.0,0.19]
[1727998750631,0.145299,60831.0,60827.0,0.19]
[1727998751829,0.082203,60828.0,60827.0,0.19]
[1727998755744,0.082212,60821.0,60820.0,0.0038]
[1727998755945,0.082212,60821.0,60820.0,0.06879254]
[1727998756139,0.082212,60821.0,60820.0,0.04919334]
[1727998756438,0.0038,60830.0,60818.0,0.23919334]
[1727998756647,0.082207,60825.0,60823.0,0.19]
[1727998756833,0.082208,60824.0,60823.0,0.19]
[1727998758653,0.082212,60821.0,60817.0,0.43351615]
[1727998758843,0.082212,60821.0,60817.0,0.38052281]
[1727998759042,0.082216,60818.0,60817.0,0.3608]
[1727998760248,0.082216,60818.0,60817.0,1.6808]
[1727998761441,0.082216,60818.0,60817.0,1.763017]
[1727998763540,0.082216,60818.0,60817.0,1.402217]
[1727998763852,0.082216,60818.0,60817.0,1.81221034]
[1727998764636,0.082216,60818.0,60817.0,1.763017]
[1727998764843,0.082216,60818.0,60817.0,1.6808]
[1727998765551,0.082216,60818.0,60817.0,0.3608]
[1727998767743,0.082216,60818.0,60814.0,0.04919334]
[1727998767943,0.082216,60818.0,60813.0,0.083063]
[1727998767944,0.082216,60818.0,60813.0,0.04919334]
[1727998768249,0.082222,60814.0,60813.0,0.04919334]
[1727998768452,0.082223,60813.0,60812.0,1.32096]
[1727998768642,0.082223,60813.0,60812.0,1.32]
[1727998769453,0.082223,60813.0,60812.0,1.33958268]
[1727998771239,0.082223,60813.0,60812.0,1.42180668]
[1727998773442,0.082223,60813.0,60812.0,1.48756929]